bitfinex/quotes_BTCUSD_20241211
["timestamp","ask_amount","ask_price","bid_price","bid_amount"]
[1733879847660,0.00016543,96439.0,96435.0,0.416786]
[1733879848068,0.00116543,96439.0,96435.0,0.416786]
[1733879848267,0.00116543,96439.0,96437.0,0.207389]
[1733879848519,0.00116543,96439.0,96438.0,0.10532524]
[1733879849123,0.00116543,96439.0,96438.0,0.10994455]
[1733879849124,0.00016543,96439.0,96438.0,0.10994455]
[1733879849802,0.00016543,96439.0,96438.0,0.00461931]
[1733879849945,0.00016543,96439.0,96438.0,0.006]
[1733879850609,0.03048253,96439.0,96438.0,0.006]
[1733879850808,0.00748253,96439.0,96435.0,0.001]
[1733879850971,0.00748253,96439.0,96431.0,0.207402]
[1733879851172,0.414774,96438.0,96421.0,0.207422]
[1733879851372,0.023,96437.0,96411.0,0.207443]
[1733879851700,0.023,96437.0,96415.0,0.00462318]
[1733879851701,0.023,96425.0,96415.0,0.00462318]
[1733879852138,0.023,96423.0,96412.0,0.00462352]
[1733879852292,0.023,96417.0,96411.0,0.01116575]
[1733879852500,0.207434,96416.0,96400.0,0.207468]
[1733879852647,0.023,96415.0,96400.0,0.414936]
[1733879852851,0.023,96415.0,96405.0,0.207457]
[1733879853259,0.023,96413.0,96405.0,0.207457]
[1733879853661,0.023,96419.0,96400.0,0.21884677]
[1733879853865,0.20743,96418.0,96402.0,0.207464]
[1733879854060,0.20743,96418.0,96405.0,0.004]
[1733879854061,0.023,96417.0,96405.0,0.004]
[1733879854476,0.023,96415.0,96405.0,0.004]
[1733879854880,0.023,96413.0,96405.0,0.004]
[1733879855271,0.023,96411.0,96405.0,0.005]
[1733879855685,0.52017724,96420.0,96405.0,0.005]
[1733879855686,0.023,96417.0,96405.0,0.004]
[1733879855897,0.00729092,96410.0,96405.0,0.004]
[1733879856136,0.023,96415.0,96405.0,0.001]
[1733879856345,0.023,96417.0,96405.0,0.001]
[1733879856597,0.023,96417.0,96401.0,0.00463333]
[1733879856598,0.0073084,96416.0,96401.0,0.00463333]
[1733879856826,0.0073084,96416.0,96407.0,0.207451]
[1733879857072,0.025,96417.0,96407.0,0.207451]
[1733879857479,0.00730839,96416.0,96407.0,0.207451]
[1733879857849,0.025,96417.0,96407.0,0.207451]
[1733879858096,0.025,96417.0,96413.0,0.20744]
[1733879858311,0.025,96417.0,96407.0,0.207451]
[1733879858312,0.00732148,96416.0,96407.0,0.207451]
[1733879858595,0.002,96416.0,96409.0,0.207449]
[1733879858971,0.002,96416.0,96409.0,0.414898]
[1733879859171,0.285312,96427.0,96407.0,0.207451]
[1733879859172,0.023,96424.0,96407.0,0.207451]
[1733879859372,0.0001712,96420.0,96408.0,0.00463875]
[1733879859570,0.023,96418.0,96408.0,0.00463875]
[1733879859926,0.0001712,96420.0,96407.0,0.003]
[1733879859927,0.230435,96416.0,96407.0,0.003]
[1733879860131,0.023,96410.0,96407.0,0.003]
[1733879860337,0.230464,96402.0,96399.0,0.00016546]
[1733879860575,0.00732135,96409.0,96399.0,0.00016546]
[1733879860779,0.002,96424.0,96400.0,0.207468]
[1733879860780,0.00733302,96401.0,96400.0,0.207468]
[1733879860989,0.00733302,96401.0,96400.0,0.21210916]
[1733879861197,0.023,96423.0,96400.0,0.00464116]
[1733879861394,0.023,96423.0,96401.0,0.00464116]
[1733879861599,0.023,96426.0,96414.0,0.207437]
[1733879861811,0.023,96426.0,96415.0,0.00464116]
[1733879862010,0.002,96416.0,96415.0,0.00464116]
[1733879862223,0.002,96416.0,96413.0,0.20744]
[1733879862433,0.023,96426.0,96415.0,0.207436]
[1733879862646,0.023,96426.0,96416.0,0.00464064]
[1733879862864,0.0011712,96420.0,96417.0,0.207432]
[1733879863282,0.0001712,96420.0,96417.0,0.207432]
[1733879863489,0.0001712,96420.0,96418.0,0.0046408]
[1733879863896,0.0001712,96420.0,96417.0,0.207432]
[1733879864068,0.0001712,96420.0,96418.0,0.0046408]
[1733879864487,0.0001712,96420.0,96419.0,0.207427]
[1733879864689,0.0001712,96420.0,96419.0,0.2120678]
[1733879865082,0.0001312,96420.0,96419.0,0.2120678]
[1733879865441,0.0001312,96420.0,96419.0,0.31739304]
[1733879865442,0.0011312,96420.0,96419.0,0.31739304]
[1733879865691,0.0001312,96420.0,96419.0,0.31739304]
[1733879865899,0.0001312,96420.0,96419.0,0.39839304]
[1733879866426,0.0001312,96420.0,96419.0,0.54839304]
[1733879866625,1e-08,96420.0,96419.0,0.69839304]
[1733879867069,0.0779,96471.0,96439.0,0.207384]
[1733879867272,0.0779,96471.0,96439.0,0.39835004]
[1733879867496,0.0779,96471.0,96439.0,0.54835004]
[1733879867761,0.0779,96471.0,96439.0,0.54834962]
[1733879868542,0.00033663,96440.0,96439.0,0.54834962]
[1733879868881,0.00033663,96440.0,96439.0,0.54934962]
[1733879869217,0.00033663,96440.0,96439.0,0.54834962]
[1733879869416,0.00033663,96440.0,96439.0,0.55434962]
[1733879869708,0.00033663,96440.0,96439.0,0.55934962]
[1733879870010,0.00033663,96440.0,96439.0,0.70934962]
[1733879870431,0.00033663,96440.0,96439.0,0.86483222]
[1733879870646,0.00033663,96440.0,96439.0,0.87383222]
[1733879870850,6.3e-07,96440.0,96439.0,0.86919184]
[1733879871057,0.0146168,96478.0,96454.0,0.15]
[1733879871256,0.0146168,96478.0,96477.0,0.207303]
[1733879871458,0.01478216,96478.0,96477.0,0.207303]
[1733879872486,0.01678216,96478.0,96477.0,0.207303]
[1733879872780,0.01678216,96478.0,96470.0,0.207318]
[1733879873225,0.01678216,96478.0,96461.0,0.207336]
[1733879873226,0.01678216,96478.0,96462.0,0.00318816]
[1733879873412,0.01678216,96478.0,96462.0,0.00781406]
[1733879873588,0.285205,96476.0,96462.0,0.00318816]
[1733879873789,0.20732,96469.0,96455.0,0.00462604]
[1733879873993,0.023,96468.0,96455.0,0.00462604]
[1733879874195,0.023,96473.0,96470.0,0.002]
[1733879874397,0.12832524,96473.0,96470.0,0.002]
[1733879874593,0.12832524,96473.0,96457.0,0.00462604]
[1733879874594,0.207314,96472.0,96457.0,0.00462604]
[1733879874795,0.023,96469.0,96457.0,0.00462604]
[1733879875252,0.023,96467.0,96455.0,0.01136251]
[1733879875632,0.023,96467.0,96455.0,0.207349]
[1733879876172,0.230314,96472.0,96455.0,0.207349]
[1733879876993,0.207325,96467.0,96451.0,0.207358]
[1733879877226,0.023,96466.0,96455.0,0.003]
[1733879877636,0.023,96464.0,96442.0,0.207378]
[1733879877847,0.023,96464.0,96438.0,0.207386]
[1733879877848,0.023,96454.0,96438.0,0.207386]
[1733879878047,0.023,96452.0,96441.0,0.01129637]
[1733879878260,0.023,96450.0,96430.0,8.56e-05]
[1733879878477,0.023,96450.0,96436.0,0.20739]
[1733879878686,0.0079344,96449.0,96436.0,0.41478]
[1733879878903,0.023,96450.0,96436.0,0.41478]
[1733879879133,0.00791724,96448.0,96436.0,0.20739]
[1733879879327,0.002,96452.0,96432.0,0.2074]
[1733879879328,0.2152826,96449.0,96432.0,0.2074]
[1733879879534,0.00793404,96448.0,96434.0,0.207395]
[1733879879734,0.00793404,96448.0,96432.0,0.2074]
[1733879879735,0.437735,96447.0,96432.0,0.2074]
[1733879879990,0.437735,96447.0,96432.0,0.20756543]
[1733879879991,0.230367,96447.0,96432.0,0.20756543]
[1733879880186,0.002,96449.0,96432.0,0.20756543]
[1733879880187,0.023,96445.0,96432.0,0.20756543]
[1733879880394,0.023,96445.0,96432.0,0.00016543]
[1733879880655,0.207378,96442.0,96432.0,0.00016543]
[1733879880858,0.023,96441.0,96432.0,0.00016543]
[1733879881010,0.0308891,96441.0,96436.0,0.002]
[1733879881312,0.023,96439.0,96432.0,0.00016543]
[1733879881668,0.20737,96446.0,96432.0,0.00016543]
[1733879881669,0.0078885,96438.0,96433.0,0.207397]
[1733879881906,0.0078885,96438.0,96434.0,0.41479]
[1733879882086,0.002,96448.0,96436.0,0.207391]
[1733879882318,0.002,96448.0,96434.0,0.207395]
[1733879882319,0.023,96447.0,96434.0,0.207395]
[1733879882528,0.1261,96465.0,96432.0,0.00216543]
[1733879882529,0.023,96464.0,96432.0,0.00216543]
[1733879882731,0.023,96462.0,96450.0,0.20736]
[1733879882951,0.0792,96465.0,96455.0,0.207349]
[1733879883165,0.286529,96465.0,96449.0,0.207361]
[1733879884455,0.0792,96465.0,96454.0,0.207352]
[1733879884632,0.001,96447.0,96446.0,0.207369]
[1733879885194,0.207342,96459.0,96446.0,0.207369]
[1733879885333,0.0792,96465.0,96432.0,0.00016543]
[1733879885334,0.023,96447.0,96432.0,0.00016543]
[1733879885883,0.023,96441.0,96432.0,0.00016543]
[1733879886265,0.207371,96446.0,96432.0,0.00016543]
[1733879886429,0.023,96445.0,96438.0,0.207386]
[1733879886635,0.03089178,96445.0,96439.0,0.207384]
[1733879886884,0.03089178,96445.0,96433.0,0.207397]
[1733879887089,0.03089178,96445.0,96435.0,0.207393]
[1733879887289,0.207359,96451.0,96435.0,0.207393]
[1733879887290,0.023,96450.0,96435.0,0.207393]
[1733879887448,0.023,96450.0,96436.0,0.00463352]
[1733879887650,0.023,96448.0,96432.0,0.01093862]
[1733879887847,0.00789592,96449.0,96438.0,0.207387]
[1733879888049,0.20734,96460.0,96434.0,0.207394]
[1733879888050,0.001,96441.0,96434.0,0.207394]
[1733879888293,0.001,96441.0,96436.0,0.207391]
[1733879888498,0.023,96459.0,96438.0,0.207387]
[1733879888709,0.023,96457.0,96446.0,0.207369]
[1733879888909,0.003,96448.0,96446.0,0.207369]
[1733879889366,0.003,96448.0,96440.0,0.18604544]
[1733879889367,0.207309,96475.0,96440.0,0.18604544]
[1733879889510,0.0628168,96478.0,96450.0,0.18604544]
[1733879889511,0.3493188,96478.0,96450.0,0.18604544]
[1733879889897,0.3493188,96478.0,96464.0,0.207331]
[1733879890083,0.0146168,96478.0,96450.0,0.29137068]
[1733879890288,0.0146168,96478.0,96458.0,0.207344]
[1733879890289,0.005,96459.0,96458.0,0.207344]
[1733879890722,0.005,96459.0,96458.0,0.21198181]
[1733879891720,0.023,96477.0,96469.0,0.20732]
[1733879891931,0.00033656,96470.0,96469.0,0.20732]
[1733879893125,0.00033656,96470.0,96469.0,0.21863386]
[1733879893349,0.00033656,96470.0,96469.0,0.01131386]
[1733879893769,0.00033656,96470.0,96463.0,0.207331]
[1733879894094,0.00033656,96470.0,96469.0,0.004]
[1733879894476,0.00831497,96470.0,96469.0,0.004]
[1733879894769,0.02333656,96470.0,96469.0,0.004]
[1733879895009,0.02333656,96470.0,96464.0,0.00464265]
[1733879895010,0.023,96469.0,96464.0,0.00464265]
[1733879895248,0.00831497,96470.0,96464.0,0.414662]
[1733879895490,0.00033656,96470.0,96464.0,0.414662]
[1733879896360,0.00033656,96470.0,96466.0,0.414652]
[1733879896563,0.00033656,96470.0,96467.0,0.10532524]
[1733879896762,0.00033656,96470.0,96468.0,0.289622]
[1733879896877,0.00033656,96470.0,96469.0,0.10732524]
[1733879897277,0.00033656,96470.0,96469.0,0.10532524]
[1733879898203,0.00033656,96470.0,96469.0,0.11432524]
[1733879898652,0.00033656,96470.0,96469.0,0.10532524]
[1733879898858,0.00033656,96470.0,96469.0,0.11432524]
[1733879899228,0.00033656,96470.0,96469.0,0.26432524]
[1733879899430,0.00033656,96470.0,96469.0,0.26832524]
[1733879899821,0.00033656,96470.0,96469.0,0.26432524]
[1733879900011,0.00033656,96470.0,96469.0,0.41432524]
[1733879900217,0.00033656,96470.0,96469.0,0.41932524]
[1733879900421,0.0146168,96478.0,96476.0,0.507305]
[1733879900630,0.0146168,96478.0,96477.0,0.10532524]
[1733879901710,0.0146168,96478.0,96477.0,0.11432524]
[1733879902182,0.0146168,96478.0,96476.0,0.207305]
[1733879902747,0.0146168,96478.0,96476.0,0.21843653]
[1733879902951,0.0146168,96478.0,96477.0,0.003]
[1733879903376,0.0146168,96478.0,96476.0,0.21843653]
[1733879903602,0.0146168,96478.0,96477.0,0.009]
[1733879903936,0.0146168,96478.0,96476.0,0.22243653]
[1733879904402,0.0146168,96478.0,96477.0,0.004]
[1733879904556,0.0146168,96478.0,96476.0,0.22243653]
[1733879904958,0.0146168,96478.0,96477.0,0.01162226]
[1733879905159,0.0146168,96478.0,96477.0,0.007]
[1733879905738,0.0376168,96478.0,96477.0,0.007]
[1733879906026,0.0376168,96478.0,96477.0,0.005]
[1733879906227,0.04547191,96478.0,96477.0,0.005]
[1733879906505,0.023,96477.0,96469.0,0.00016536]
[1733879906757,0.207305,96476.0,96469.0,0.00016536]
[1733879906987,0.00784567,96476.0,96469.0,0.00016536]
[1733879907212,0.00784567,96476.0,96475.0,0.207307]
[1733879907415,0.00784567,96476.0,96470.0,0.207316]
[1733879907628,0.0156168,96478.0,96470.0,0.207316]
[1733879907629,0.0186168,96478.0,96470.0,0.414634]
[1733879907841,0.0186168,96478.0,96470.0,0.207316]
[1733879907842,0.00782266,96476.0,96470.0,0.207316]
[1733879908058,0.003,96476.0,96470.0,0.207316]
[1733879908260,0.0186168,96478.0,96475.0,0.207306]
[1733879908798,0.0146168,96478.0,96475.0,0.207306]
[1733879909000,0.001,96476.0,96475.0,0.414613]
[1733879909628,0.0146168,96478.0,96475.0,0.414613]
[1733879909826,0.0146168,96478.0,96470.0,0.207316]
[1733879910001,0.0146168,96478.0,96475.0,0.207306]
[1733879910730,0.0146168,96478.0,96475.0,0.415613]
[1733879911314,0.0146168,96478.0,96475.0,0.420613]
[1733879911891,0.0146168,96478.0,96475.0,0.415613]
[1733879912098,0.0156168,96478.0,96475.0,0.007]
[1733879912307,0.00784474,96477.0,96475.0,0.008]
[1733879912857,0.0156168,96478.0,96475.0,0.008]
[1733879913264,0.0156168,96478.0,96475.0,0.007]
[1733879913495,0.0156168,96478.0,96475.0,0.008]
[1733879913692,0.00784474,96477.0,96475.0,0.008]
[1733879914244,0.00784474,96477.0,96475.0,0.001]
[1733879914642,0.001,96477.0,96475.0,0.008]
[1733879914981,0.001,96477.0,96475.0,0.007]
[1733879915192,0.33563024,96476.0,96475.0,0.007]
[1733879915391,0.33563024,96476.0,96475.0,0.001]
[1733879915392,0.34343365,96476.0,96475.0,0.001]
[1733879915937,0.34343365,96476.0,96475.0,0.004]
[1733879916252,0.34343365,96476.0,96470.0,0.207318]
[1733879916253,0.023,96475.0,96470.0,0.207318]
[1733879916575,0.0146168,96478.0,96472.0,0.207314]
[1733879916837,0.023,96477.0,96473.0,0.00463275]
[1733879917069,0.003,96476.0,96474.0,0.207309]
[1733879917631,0.003,96476.0,96475.0,0.00463386]
[1733879918230,0.0146168,96478.0,96476.0,0.207305]
[1733879918537,0.0146168,96478.0,96477.0,0.00463386]
[1733879918738,0.0156168,96478.0,96477.0,0.00463386]
[1733879919179,0.0146168,96478.0,96477.0,0.00463386]
[1733879919590,0.0156168,96478.0,96474.0,0.21816249]
[1733879919858,0.0156168,96478.0,96475.0,0.00463558]
[1733879920061,0.0146168,96478.0,96475.0,0.00463558]
[1733879920272,0.0146168,96478.0,96477.0,0.001]
[1733879920671,0.0146168,96478.0,96477.0,0.00563537]
[1733879921407,0.0146168,96478.0,96477.0,0.00463537]
[1733879921610,0.0156168,96478.0,96477.0,0.01063537]
[1733879921818,0.0146168,96478.0,96477.0,0.00463537]
[1733879922320,0.0156168,96478.0,96477.0,0.01263537]
[1733879922545,0.0146168,96478.0,96477.0,0.00463537]
[1733879923327,0.0146168,96478.0,96477.0,0.00563537]
[1733879923528,0.0146168,96478.0,96477.0,0.00563485]
[1733879924155,0.0156168,96478.0,96477.0,0.11696009]
[1733879924729,0.0146168,96478.0,96477.0,0.10996009]
[1733879924937,0.0146168,96478.0,96477.0,0.11196009]
[1733879925132,0.0146168,96478.0,96477.0,0.10732524]
[1733879925285,0.0156168,96478.0,96477.0,0.11432524]
[1733879925712,0.0156168,96478.0,96477.0,0.11632524]
[1733879926191,0.0146168,96478.0,96477.0,0.10732524]
[1733879926394,0.0001712,96480.0,96477.0,0.25732524]
[1733879926537,0.0001712,96490.0,96489.0,0.15]
[1733879926741,0.0001712,96490.0,96489.0,0.46260224]
[1733879928265,0.0001712,96490.0,96489.0,0.47160224]
[1733879928478,0.0001712,96490.0,96489.0,0.54410224]
[1733879928899,0.0001712,96490.0,96489.0,0.55310224]
[1733879929326,0.0001712,96490.0,96489.0,0.54810224]
[1733879929684,0.0001712,96490.0,96489.0,0.55899133]
[1733879930703,0.0001712,96490.0,96489.0,0.55499133]
[1733879930907,0.0001712,96490.0,96489.0,0.56999133]
[1733879931133,0.0001712,96490.0,96489.0,0.56099133]
[1733879931552,0.0001712,96490.0,96489.0,0.56399133]
[1733879931747,0.0001712,96490.0,96489.0,0.56099133]
[1733879932129,0.0001712,96490.0,96489.0,0.61679133]
[1733879932355,0.0001712,96490.0,96489.0,0.61079133]
[1733879932555,0.0001712,96490.0,96489.0,0.61679133]
[1733879933687,0.0001712,96490.0,96489.0,0.61079133]
[1733879934452,0.0001712,96490.0,96489.0,0.60779133]
[1733879934952,0.0001712,96490.0,96489.0,0.61679133]
[1733879935093,0.0001712,96490.0,96489.0,0.75578854]
[1733879935297,0.0001712,96490.0,96489.0,0.95169289]
[1733879937276,0.0001712,96490.0,96489.0,0.95479068]
[1733879937423,0.0001712,96490.0,96489.0,0.61988912]
[1733879937627,0.0001712,96490.0,96489.0,0.95507856]
[1733879938243,0.0001712,96490.0,96489.0,1.13985126]
[1733879938443,0.15,96549.0,96489.0,1.13985126]
[1733879938444,0.207154,96547.0,96499.0,0.207256]
[1733879938731,0.0817,96540.0,96499.0,0.64676758]
[1733879939314,0.0817,96540.0,96499.0,0.83124545]
[1733879939486,0.0817,96540.0,96499.0,0.64676758]
[1733879939837,0.0007223,96500.0,96499.0,0.87749535]
[1733879940260,0.0007223,96500.0,96499.0,0.88049535]
[1733879940741,0.0007223,96500.0,96499.0,0.64676758]
[1733879940954,0.0007223,96500.0,96499.0,0.87731279]
[1733879941166,0.0007223,96500.0,96499.0,0.83823331]
[1733879941345,0.0007223,96500.0,96499.0,0.79208751]
[1733879941581,0.0007223,96500.0,96499.0,0.33942436]
[1733879941793,0.0007223,96500.0,96499.0,0.33242436]
[1733879941991,0.0794,96517.0,96516.0,0.207219]
[1733879942192,0.20714,96553.0,96516.0,0.10532524]
[1733879942393,0.00808307,96517.0,96514.0,0.207223]
[1733879942542,0.00016526,96517.0,96514.0,0.492146]
[1733879943337,0.00016526,96517.0,96516.0,0.009]
[1733879943736,0.00016526,96517.0,96516.0,0.057]
[1733879943939,0.00016526,96517.0,96516.0,0.207]
[1733879944182,0.049,96557.0,96518.0,0.15]
[1733879944388,0.000171,96560.0,96556.0,0.207133]
[1733879944585,0.000171,96560.0,96557.0,0.207131]
[1733879944987,0.000171,96560.0,96557.0,0.414262]
[1733879945164,0.00665748,96559.0,96557.0,0.207131]
[1733879945365,0.000171,96560.0,96557.0,0.207131]
[1733879945570,0.000171,96560.0,96557.0,0.414262]
[1733879946020,0.00033623,96560.0,96557.0,0.414262]
[1733879946311,0.00033623,96560.0,96557.0,0.419262]
[1733879946747,0.00033623,96560.0,96557.0,0.43028887]
[1733879947152,0.00033623,96560.0,96557.0,0.42528887]
[1733879947710,0.00033623,96560.0,96559.0,0.10532524]
[1733879947711,0.00016523,96560.0,96559.0,0.10532524]
[1733879947912,0.0001714,96590.0,96567.0,0.207109]
[1733879948116,0.0001714,96590.0,96569.0,0.207105]
[1733879948468,0.0001714,96590.0,96569.0,0.31243024]
[1733879948668,0.0001714,96590.0,96574.0,0.207095]
[1733879948875,0.0001714,96590.0,96574.0,0.31242024]
[1733879949287,0.0001714,96590.0,96589.0,0.207062]
[1733879949496,0.0001714,96590.0,96589.0,0.31238724]
[1733879950117,0.0001712,96600.0,96599.0,0.207041]
[1733879950321,0.0001712,96600.0,96599.0,0.31236624]
[1733879950546,0.0007221,96600.0,96599.0,0.31236624]
[1733879950961,0.68429238,96620.0,96599.0,0.10532524]
[1733879951167,0.68429238,96620.0,96613.0,0.207011]
[1733879951399,0.68429238,96620.0,96613.0,0.31233624]
[1733879951603,0.00017411,96614.0,96613.0,0.31233624]
[1733879953066,0.00017411,96614.0,96613.0,0.32133624]
[1733879953290,0.00017411,96614.0,96613.0,0.31233624]
[1733879953677,0.00017411,96614.0,96613.0,0.32533624]
[1733879953889,0.00017411,96614.0,96613.0,0.31633624]
[1733879954014,0.00017411,96614.0,96613.0,0.31233624]
[1733879954237,0.00017411,96614.0,96613.0,0.32133624]
[1733879954438,0.00017411,96614.0,96613.0,0.32533624]
[1733879955307,1.1e-07,96614.0,96613.0,0.47533624]
[1733879955479,5.72e-05,96620.0,96617.0,0.15]
[1733879955677,5.72e-05,96620.0,96619.0,0.15]
[1733879955959,5.72e-05,96620.0,96619.0,0.48522524]
[1733879955960,2e-07,96620.0,96619.0,0.48522524]
[1733879956160,2e-07,96620.0,96619.0,0.69222324]
[1733879956415,0.0779,96666.0,96647.0,0.206938]
[1733879957778,0.00024497,96648.0,96647.0,0.206938]
[1733879958309,0.00024497,96648.0,96647.0,0.208938]
[1733879958518,0.00024497,96648.0,96647.0,0.31426324]
[1733879958719,0.00024497,96648.0,96647.0,0.32519576]
[1733879959249,0.12376705,96730.0,96647.0,0.32519576]
[1733879959250,0.0779,96685.0,96684.0,0.206859]
[1733879959473,0.0779,96685.0,96684.0,0.31218424]
[1733879959677,0.00620501,96685.0,96684.0,0.31218424]
[1733879959880,0.0001712,96720.0,96684.0,0.31218424]
[1733879959881,0.0001712,96720.0,96686.0,0.15]
[1733879960212,0.0001712,96720.0,96716.0,0.20679]
[1733879960385,0.0001712,96720.0,96716.0,0.41358]
[1733879960579,0.00072158,96720.0,96716.0,0.41358]
[1733879960836,0.06862158,96731.0,96709.0,0.206804]
[1733879960950,0.06862158,96731.0,96703.0,0.12376705]
[1733879960951,0.206774,96724.0,96703.0,0.12376705]
[1733879961153,0.206774,96724.0,96704.0,0.21134598]
[1733879961380,0.00504785,96723.0,96711.0,0.2068]
[1733879961559,0.206769,96726.0,96710.0,0.18473956]
[1733879961814,0.206782,96720.0,96704.0,0.206816]
[1733879962165,0.00504928,96719.0,96703.0,0.01102179]
[1733879962403,0.206798,96713.0,96696.0,0.206831]
[1733879962731,0.023,96712.0,96696.0,0.206831]
[1733879962941,0.02804642,96712.0,96696.0,0.206831]
[1733879963145,0.023,96712.0,96701.0,0.206821]
[1733879963272,0.023,96716.0,96701.0,0.206821]
[1733879963481,0.00504678,96711.0,96704.0,0.001]
[1733879963682,0.023,96716.0,96704.0,0.001]
[1733879963929,0.00504678,96710.0,96704.0,0.001]
[1733879964137,0.023,96716.0,96704.0,0.001]
[1733879964340,0.00504678,96709.0,96701.0,0.206821]
[1733879964541,0.436584,96716.0,96696.0,0.211831]
[1733879964964,0.023,96708.0,96692.0,0.0106582]
[1733879965160,0.023,96701.0,96684.0,0.206859]
[1733879965365,0.023,96701.0,96689.0,0.206847]
[1733879965573,0.206814,96706.0,96689.0,0.206847]
[1733879965574,0.023,96703.0,96689.0,0.206847]
[1733879965817,0.00504536,96700.0,96689.0,0.413695]
[1733879966024,0.206816,96704.0,96689.0,0.206847]
[1733879966226,0.20682,96702.0,96689.0,0.206847]
[1733879966447,0.023,96701.0,96689.0,0.206847]
[1733879966842,0.00504518,96700.0,96689.0,0.206847]
[1733879967195,0.00016498,96702.0,96689.0,0.21770721]
[1733879967400,0.00016498,96702.0,96701.0,0.206823]
[1733879968883,0.00016498,96702.0,96701.0,0.201823]
[1733879969171,0.00016498,96702.0,96692.0,0.206842]
[1733879969392,0.00016498,96702.0,96697.0,0.206829]
[1733879970001,0.00116498,96702.0,96701.0,0.008]
[1733879970433,0.00116498,96702.0,96689.0,0.16071752]
[1733879970434,0.00016498,96702.0,96689.0,0.16071752]
[1733879970654,0.20698598,96702.0,96697.0,0.005]
[1733879970858,0.023,96701.0,96697.0,0.005]
[1733879971063,0.023,96701.0,96654.0,0.1975]
[1733879971064,0.023,96699.0,96671.0,0.206887]
[1733879971266,0.00016498,96702.0,96684.0,0.01070446]
[1733879971507,0.00116498,96702.0,96701.0,0.008]
[1733879971709,0.02316498,96702.0,96686.0,0.41371]
[1733879971918,0.02316498,96702.0,96677.0,0.206873]
[1733879971919,0.00016498,96702.0,96677.0,0.206873]
[1733879972121,0.206842,96692.0,96677.0,0.206873]
[1733879972576,0.206837,96695.0,96675.0,0.041407]
[1733879972577,0.413706,96687.0,96675.0,0.041407]
[1733879972795,0.413706,96687.0,96672.0,0.206885]
[1733879972796,0.206853,96687.0,96676.0,0.206874]
[1733879973025,0.00016498,96702.0,96671.0,0.01085572]
[1733879973026,0.206846,96691.0,96671.0,0.01085572]
[1733879973231,0.023,96688.0,96671.0,0.01085572]
[1733879973429,0.023,96688.0,96650.0,0.18473956]
[1733879973430,0.206863,96683.0,96650.0,0.18473956]
[1733879973641,0.206854,96687.0,96651.0,0.109832]
[1733879973642,0.206873,96678.0,96651.0,0.109832]
[1733879973849,0.206873,96678.0,96675.0,0.009]
[1733879973994,0.413746,96678.0,96675.0,0.009]
[1733879974206,0.413746,96678.0,96652.0,0.206927]
[1733879974207,0.206893,96669.0,96652.0,0.206927]
[1733879974409,0.023,96674.0,96671.0,0.003]
[1733879974732,0.023,96672.0,96671.0,0.003]
[1733879974934,0.023,96672.0,96648.0,0.206935]
[1733879975111,0.023,96672.0,96646.0,0.206939]
[1733879975112,0.206903,96664.0,96646.0,0.206939]
[1733879975298,0.0486,96675.0,96639.0,0.206955]
[1733879975299,0.00505027,96671.0,96644.0,0.206943]
[1733879975499,0.023,96657.0,96644.0,0.206943]
[1733879975699,0.023,96657.0,96648.0,0.206935]
[1733879975909,0.10532524,96670.0,96641.0,0.206951]
[1733879975910,0.00503167,96656.0,96641.0,0.206951]
[1733879976107,0.10532524,96670.0,96655.0,0.206921]
[1733879976108,0.206889,96670.0,96655.0,0.206921]
[1733879976313,0.023,96669.0,96641.0,0.10532524]
[1733879976517,0.023,96669.0,96651.0,0.206928]
[1733879976518,0.02803557,96669.0,96651.0,0.206928]
[1733879976926,0.001,96657.0,96648.0,0.007]
[1733879977136,0.206919,96656.0,96648.0,0.007]
[1733879977339,0.206902,96664.0,96641.0,0.356949]
[1733879977549,0.023,96668.0,96641.0,0.15]
[1733879977550,0.00501922,96655.0,96641.0,0.15]
[1733879977754,0.206895,96667.0,96651.0,0.208929]
[1733879977967,0.023,96675.0,96664.0,0.206901]
[1733879978161,0.00502257,96666.0,96660.0,0.206909]
[1733879978372,0.023,96676.0,96660.0,0.413819]
[1733879978614,0.023,96676.0,96665.0,0.206898]
[1733879978791,0.023,96676.0,96642.0,0.206949]
[1733879978792,0.00502569,96675.0,96642.0,0.206949]
[1733879979152,0.0772,96683.0,96642.0,0.206949]
[1733879979153,0.20687,96679.0,96651.0,0.15]
[1733879979359,0.20687,96679.0,96661.0,0.206908]
[1733879979521,0.00496398,96678.0,96663.0,0.206904]
[1733879979869,0.206874,96677.0,96664.0,0.00453414]
[1733879980019,0.023,96678.0,96665.0,0.2069]
[1733879980223,0.023,96675.0,96666.0,0.00453414]
[1733879980430,0.023,96675.0,96667.0,0.00453414]
[1733879980632,0.023,96673.0,96667.0,0.00453414]
[1733879980830,0.023,96673.0,96668.0,0.00453414]
[1733879981033,0.023,96671.0,96669.0,0.00453414]
[1733879981235,0.023,96671.0,96657.0,0.00726326]
[1733879981236,0.206901,96665.0,96657.0,0.00726326]
[1733879981435,0.206901,96665.0,96658.0,0.00453977]
[1733879981613,0.206901,96665.0,96618.0,0.15]
[1733879981614,0.13328981,96664.0,96659.0,0.00453977]
[1733879981811,0.13328981,96664.0,96645.0,0.01180303]
[1733879981812,0.413823,96660.0,96645.0,0.01180303]
[1733879982011,0.13328981,96664.0,96646.0,0.00454142]
[1733879982012,0.023,96659.0,96646.0,0.00454142]
[1733879982239,0.023,96659.0,96638.0,0.413912]
[1733879982240,0.023,96657.0,96647.0,0.00454142]
[1733879982442,0.206925,96654.0,96648.0,0.00454142]
[1733879982642,0.206925,96654.0,96635.0,0.00055038]
[1733879982643,0.023,96651.0,96649.0,0.00454142]
[1733879982917,0.206936,96648.0,96635.0,0.00055038]
[1733879983167,0.023,96643.0,96636.0,0.00454396]
[1733879983343,0.023,96641.0,96635.0,0.00055038]
[1733879983898,0.023,96645.0,96635.0,0.00055038]
[1733879984167,0.023,96639.0,96635.0,0.00055038]
[1733879984371,0.023,96647.0,96635.0,0.00055038]
[1733879984695,0.0772,96649.0,96635.0,0.00055038]